bitfinex/quotes_SOLUSD_20250806
["timestamp","ask_amount","ask_price","bid_price","bid_amount"]
[1754469575130,0.68,163.57,163.54,14.51972289]
[1754469575501,42.84,163.58,163.54,14.51972289]
[1754469576038,43.52,163.58,163.55,14.5194228]
[1754469576241,43.52,163.58,163.55,6.11416269]
[1754469577333,43.52,163.58,163.56,0.06]
[1754469579302,51.92526011,163.58,163.56,0.06]
[1754469581739,42.92,163.58,163.56,9.14526011]
[1754469581940,42.92,163.58,163.56,0.06]
[1754469582122,52.00526011,163.58,163.56,0.06]
[1754469582304,9.08526011,163.57,163.56,0.06]
[1754469582716,51.32526011,163.58,163.56,0.06]
[1754469583105,52.00526011,163.58,163.56,0.06]
[1754469585541,0.68,163.57,163.56,0.06]
[1754469586243,51.32526011,163.58,163.56,0.06]
[1754469586658,52.00526011,163.58,163.56,0.06]
[1754469586817,0.68,163.57,163.56,0.06]
[1754469587019,13.16357042,163.57,163.56,0.06]
[1754469589940,19.27716093,163.57,163.56,0.06]
[1754469590331,45.27716093,163.57,163.56,0.06]
[1754469590964,45.27716093,163.57,163.53,0.06]
[1754469590965,41.10621557,163.54,163.53,0.06]
[1754469591133,15.10621557,163.53,163.51,0.06]
[1754469591319,26.0,163.49,163.43,1.46436321]
[1754469591518,8.40526011,163.45,163.43,1.46436321]
[1754469591721,26.0,163.49,163.43,7.58319084]
[1754469591722,42.96,163.44,163.43,7.58319084]
[1754469592547,42.96,163.44,163.43,15.98845095]
[1754469592927,42.96,163.44,163.43,7.58319084]
[1754469593123,42.96,163.44,163.43,1.46436321]
[1754469593536,42.96,163.44,163.43,7.58319084]
[1754469593731,42.96,163.44,163.43,15.98845095]
[1754469599127,42.96,163.44,163.43,16.04845095]
[1754469599328,42.96,163.44,163.43,7.64319084]
[1754469599525,42.96,163.44,163.43,7.63319084]
[1754469600256,42.96,163.44,163.43,6.96319084]
[1754469600571,42.96,163.44,163.43,16.03845095]
[1754469602470,42.96,163.44,163.43,16.03845095]
[1754469604758,42.92,163.46,163.43,16.03845095]
[1754469604959,42.92,163.46,163.45,8.40526011]
[1754469605281,42.92,163.46,163.45,15.19333903]
[1754469606239,42.92,163.46,163.45,14.52333903]
[1754469606438,42.92,163.46,163.45,15.19333903]
[1754469609081,42.92,163.46,163.45,6.11807892]
[1754469609262,42.92,163.46,163.45,15.19333903]
[1754469612463,42.92,163.46,163.45,14.52333903]
[1754469614694,42.92,163.46,163.45,15.19333903]
[1754469615367,42.92,163.46,163.45,6.78807892]
[1754469615681,42.92,163.46,163.45,15.19333903]
[1754469617167,42.92,163.46,163.45,6.78807892]
[1754469617373,42.92,163.46,163.45,14.52333903]
[1754469617891,42.92,163.46,163.45,15.19333903]
[1754469618478,42.92,163.46,163.45,14.52333903]
[1754469619398,42.92,163.46,163.45,15.19333903]
[1754469619604,42.92,163.46,163.45,6.78807892]
[1754469619899,42.92,163.46,163.45,15.19333903]
[1754469620078,42.92,163.46,163.45,6.78807892]
[1754469620292,42.92,163.46,163.45,15.19333903]
[1754469620780,42.92,163.46,163.45,14.52333903]
[1754469622978,42.92,163.46,163.45,15.19333903]
[1754469623378,42.92,163.46,163.45,6.78807892]
[1754469623690,42.92,163.46,163.45,15.19333903]
[1754469624763,42.92,163.46,163.45,6.78807892]
[1754469624975,42.92,163.46,163.45,15.19333903]
[1754469626190,42.92,163.46,163.44,6.17845325]
[1754469626400,42.92,163.46,163.45,8.40526011]
[1754469627396,42.92,163.46,163.45,9.12526011]
[1754469628111,42.92,163.46,163.44,88.17845325]
[1754469628275,42.92,163.46,163.44,97.30371336]
[1754469629109,42.92,163.46,163.44,88.17845325]
[1754469629616,42.92,163.46,163.44,88.89845325]
[1754469629795,42.92,163.46,163.45,9.12526011]
[1754469630405,42.92,163.46,163.45,15.24333903]
[1754469631003,0.03,163.51,163.45,112.53853633]
[1754469631183,0.03,163.51,163.5,8.40526011]
[1754469631588,0.03,163.51,163.5,9.12526011]
[1754469631828,0.03,163.51,163.5,17.53052022]
[1754469632192,0.03,163.51,163.5,9.12526011]
[1754469632500,0.03,163.51,163.5,15.24146806]
[1754469633789,0.03,163.51,163.5,23.64672817]
[1754469633994,0.03,163.51,163.5,15.24146806]
[1754469635094,0.03,163.51,163.5,14.52146806]
[1754469639608,0.68,163.51,163.49,8.40526011]
[1754469641321,0.68,163.51,163.48,96.5220912]
[1754469641488,0.03,163.51,163.49,8.40526011]
[1754469641898,0.03,163.51,163.5,6.11620795]
[1754469642616,9.08526011,163.51,163.48,82.0]
[1754469642838,43.49,163.5,163.47,6.11705789]
[1754469643325,43.49,163.5,163.49,0.06]
[1754469646322,55.96912367,163.5,163.49,0.06]
[1754469648819,62.08533162,163.5,163.49,0.06]
[1754469649029,77.19154719,163.5,163.49,0.06]
[1754469650333,62.08533162,163.5,163.49,0.06]
[1754469651819,88.08533162,163.5,163.49,0.06]
[1754469653127,82.01063809,163.5,163.49,0.06]
[1754469653300,77.19154719,163.5,163.49,0.06]
[1754469653699,68.78628708,163.5,163.49,0.06]
[1754469653905,90.66912492,163.5,163.49,0.06]
[1754469654105,68.78628708,163.5,163.49,0.06]
[1754469654412,77.19154719,163.5,163.49,0.06]
[1754469654734,68.78628708,163.5,163.49,0.06]
[1754469655035,77.19154719,163.5,163.49,0.06]
[1754469655365,85.5968073,163.5,163.49,0.06]
[1754469655901,55.31912367,163.5,163.49,0.06]
[1754469656109,87.43533162,163.5,163.49,0.06]
[1754469656335,88.08533162,163.5,163.49,0.06]
[1754469657917,103.19154719,163.5,163.49,0.06]
[1754469658115,111.5968073,163.5,163.49,0.06]
[1754469659221,103.19154719,163.5,163.49,0.06]
[1754469660433,111.5968073,163.5,163.49,0.06]
[1754469660633,103.19154719,163.5,163.49,0.06]
[1754469661020,111.5968073,163.5,163.49,0.06]
[1754469661942,103.19154719,163.5,163.49,0.06]
[1754469663529,77.19154719,163.5,163.49,0.06]
[1754469663729,85.5968073,163.5,163.49,0.06]
[1754469664252,26.0,163.48,163.47,0.06]
[1754469664444,86.49144129,163.48,163.47,0.06]
[1754469664948,43.55144129,163.48,163.47,0.74]
[1754469665147,73.03386356,163.48,163.47,0.74]
[1754469665352,81.43912367,163.48,163.47,0.74]
[1754469665731,47.03386356,163.48,163.47,0.74]
[1754469667031,55.43912367,163.48,163.47,0.74]
[1754469667233,55.43912367,163.48,163.47,0.06]
[1754469668159,61.55607987,163.48,163.47,0.06]
[1754469668765,71.19533924,163.48,163.47,0.06]
[1754469669053,47.07386356,163.48,163.47,0.74]
[1754469669231,47.09386356,163.48,163.47,0.74]
[1754469669863,47.09386356,163.48,163.47,6.85733039]
[1754469670241,43.02,163.48,163.47,15.2625905]
[1754469670436,43.02,163.48,163.47,6.85733039]
[1754469671557,43.02,163.48,163.47,15.2625905]
[1754469671949,0.03,163.51,163.47,15.2625905]
[1754469671950,0.03,163.51,163.47,30.55591649]
[1754469672142,0.03,163.51,163.5,8.40526011]
[1754469672359,43.07,163.51,163.5,8.40526011]
[1754469672550,43.07,163.51,163.5,9.08526011]
[1754469673065,0.03,163.51,163.5,9.08526011]
[1754469673248,0.03,163.59,163.5,17.49052022]
[1754469673249,26.0,163.58,163.5,17.49052022]
[1754469673449,43.06,163.58,163.51,27.29158338]
[1754469673755,43.06,163.58,163.57,14.51885062]
[1754469673961,43.06,163.58,163.57,0.68]
[1754469674160,43.06,163.58,163.51,26.61158338]
[1754469674161,43.06,163.58,163.55,0.68]
[1754469674343,43.06,163.58,163.55,9.08526011]
[1754469674547,43.06,163.58,163.56,0.68]
[1754469676042,43.06,163.58,163.56,6.7939559]
[1754469676643,43.06,163.58,163.56,0.68]
[1754469677439,43.06,163.58,163.56,6.79392945]
[1754469677760,43.06,163.58,163.57,0.68]
[1754469678276,43.06,163.58,163.55,6.79422136]
[1754469678454,43.06,163.58,163.54,14.51990288]
[1754469678651,43.06,163.58,163.55,0.68]
[1754469679241,43.71,163.58,163.53,0.68]
[1754469679469,8.40526011,163.57,163.54,0.68]
[1754469679660,43.04,163.56,163.53,90.40526011]
[1754469679845,8.40526011,163.55,163.53,82.0]
[1754469680046,43.04,163.54,163.53,82.0]
[1754469680386,43.04,163.54,163.52,0.68]
[1754469680545,43.04,163.54,163.51,82.0]
[1754469680747,51.44526011,163.54,163.51,88.11578248]
[1754469681069,51.44526011,163.54,163.51,88.79577526]
[1754469681272,43.04,163.54,163.52,0.68]
[1754469681570,51.44526011,163.54,163.52,0.68]
[1754469681966,51.44526011,163.54,163.51,82.0]
[1754469682286,51.44526011,163.54,163.51,82.68]
[1754469683595,8.40526011,163.53,163.5,82.0]
[1754469683886,43.04,163.52,163.51,15.201094]
[1754469684092,34.40526011,163.56,163.51,15.201094]
[1754469684093,34.40526011,163.58,163.51,15.201094]
[1754469684255,43.04,163.57,163.53,8.40526011]
[1754469684454,43.04,163.57,163.54,0.68]
[1754469685055,43.04,163.57,163.55,0.68]
[1754469685661,43.04,163.57,163.56,0.71]
[1754469686084,43.04,163.57,163.56,6.82396429]
[1754469686299,43.04,163.57,163.56,0.71]
[1754469687204,43.69,163.57,163.54,6.11461731]
[1754469687397,51.44526011,163.57,163.53,82.71]
[1754469687691,51.44526011,163.57,163.54,0.71]
[1754469688066,43.04,163.57,163.55,0.71]
[1754469691271,43.04,163.57,163.55,6.82421211]
[1754469691471,43.04,163.57,163.56,0.71]
[1754469691670,43.04,163.57,163.56,9.11526011]
[1754469692190,43.04,163.57,163.56,15.2292244]
[1754469692403,43.04,163.57,163.52,15.28745]
[1754469692691,43.04,163.57,163.54,9.11526011]
[1754469693194,43.04,163.57,163.55,0.71]
[1754469693894,43.04,163.57,163.56,0.71]
[1754469694097,43.04,163.57,163.55,0.71]
[1754469694306,43.04,163.57,163.55,6.82431453]
[1754469694793,43.04,163.57,163.55,6.11431453]
[1754469695097,43.04,163.57,163.56,0.71]
[1754469695404,43.04,163.57,163.56,91.11526011]
[1754469695598,43.04,163.57,163.56,9.11526011]
[1754469696297,43.04,163.57,163.56,15.2292244]
[1754469697182,43.04,163.57,163.56,14.5192244]
[1754469697375,43.04,163.57,163.56,15.2292244]
[1754469701687,43.04,163.57,163.56,6.82396429]
[1754469701909,43.04,163.57,163.56,15.2292244]
[1754469704782,43.04,163.57,163.56,97.2292244]
[1754469706179,52.09526011,163.57,163.54,6.11460597]
[1754469706418,0.65,163.56,163.54,6.11460597]
[1754469707208,0.65,163.56,163.53,14.52034602]
[1754469707419,51.44526011,163.57,163.53,15.23034602]
[1754469707589,43.04,163.57,163.53,15.23034602]
[1754469708913,52.09526011,163.57,163.53,15.23034602]
[1754469710010,52.09526011,163.57,163.53,6.82508591]
[1754469710223,9.05526011,163.56,163.53,6.11508591]
[1754469710398,8.40526011,163.55,163.53,6.11508591]
[1754469710597,52.09526011,163.54,163.52,6.11532363]
[1754469710800,9.05526011,163.53,163.51,82.0]
[1754469711115,9.05526011,163.53,163.51,6.11576803]
[1754469711413,9.05526011,163.53,163.5,6.17620795]
[1754469712930,8.40526011,163.53,163.5,6.88620795]
[1754469713123,43.04,163.54,163.5,6.88620795]
[1754469713334,43.04,163.54,163.51,9.11526011]
[1754469713526,43.04,163.54,163.52,9.11526011]
[1754469713703,43.04,163.54,163.53,9.11526011]
[1754469714106,43.04,163.54,163.51,0.71]
[1754469714315,43.04,163.54,163.51,9.11526011]
[1754469714515,43.04,163.54,163.52,6.11545988]
[1754469714719,51.44526011,163.54,163.51,6.11575912]
[1754469714918,0.65,163.53,163.51,6.11575912]
[1754469715304,0.65,163.53,163.5,6.17606452]
[1754469715933,51.44526011,163.54,163.5,6.17606452]
[1754469716107,4.52262154,163.53,163.5,6.17606452]
[1754469716319,52.09526011,163.54,163.5,6.17606452]
[1754469716522,8.59592376,163.53,163.5,6.17606452]
[1754469716705,52.09526011,163.54,163.5,6.17606452]
[1754469716706,52.09526011,163.54,163.5,88.17606452]
[1754469716935,8.59592539,163.53,163.5,88.17606452]
[1754469717103,52.09526011,163.54,163.5,88.17606452]
[1754469717304,8.59667534,163.53,163.5,88.17606452]
[1754469717502,52.09526011,163.54,163.5,88.89606452]
[1754469717735,8.59729058,163.53,163.5,88.89606452]
[1754469717947,52.09526011,163.54,163.5,88.89606452]
[1754469718235,8.59736018,163.53,163.51,0.72]
[1754469718432,51.44526011,163.54,163.51,0.72]
[1754469718634,8.59396709,163.53,163.51,0.72]
[1754469718838,43.04,163.54,163.51,0.72]
[1754469719021,8.59332718,163.53,163.51,6.83547509]
[1754469719210,43.04,163.54,163.51,6.83547509]
[1754469719410,4.52374724,163.53,163.51,6.83547509]
[1754469719633,43.04,163.54,163.51,6.83547509]
[1754469719835,4.52382188,163.53,163.51,6.83547509]
[1754469720139,43.04,163.54,163.51,6.83547509]
[1754469720341,4.52375626,163.53,163.51,6.83547509]
[1754469720526,43.04,163.54,163.51,6.83547509]
[1754469720726,4.52355871,163.53,163.51,6.83547509]
[1754469720941,43.04,163.54,163.51,6.83547509]
[1754469721136,4.52412228,163.53,163.51,6.83547509]
[1754469721324,43.69,163.54,163.51,6.11547509]
[1754469721524,4.52395587,163.53,163.51,6.11547509]
[1754469721839,43.69,163.54,163.51,6.11547509]
[1754469722040,4.52395587,163.53,163.51,6.11547509]
[1754469722341,52.09526011,163.54,163.51,6.11547509]
[1754469722515,4.52354767,163.53,163.51,6.11547509]
[1754469722715,51.44526011,163.54,163.51,6.83547509]
[1754469722927,4.52355163,163.53,163.51,6.83547509]
[1754469723130,51.44526011,163.54,163.51,6.83547509]
[1754469723333,4.52338309,163.53,163.51,6.83547509]
[1754469723546,43.04,163.54,163.52,0.72]
[1754469724644,43.04,163.54,163.53,6.11508591]
[1754469724849,51.63341253,163.54,163.53,6.11508591]
[1754469727246,51.63341253,163.54,163.52,6.11545988]
[1754469727444,43.04,163.54,163.52,6.11545988]
[1754469728149,43.04,163.54,163.52,6.83545988]
[1754469728644,43.04,163.54,163.53,6.83508591]
[1754469728849,51.63478581,163.54,163.53,6.83508591]
[1754469729414,51.63478581,163.54,163.53,6.11508591]
[1754469730644,51.63435948,163.54,163.53,6.11508591]
[1754469731130,47.56379679,163.54,163.53,6.83508591]
[1754469731320,43.04,163.54,163.53,6.83508591]
[1754469731519,43.07,163.54,163.53,6.83508591]
[1754469731747,0.03,163.54,163.53,15.24034602]
[1754469731947,42.97,163.54,163.53,6.83508591]
[1754469732258,42.97,163.54,163.53,6.11508591]
[1754469732745,42.97,163.54,163.53,6.83508591]
[1754469734564,42.97,163.54,163.53,88.11508591]
[1754469734935,42.97,163.54,163.53,82.0]
[1754469735969,60.62667623,163.54,163.53,82.0]
[1754469736128,51.57141612,163.54,163.53,82.0]
[1754469736460,51.57141612,163.54,163.53,82.72]
[1754469736775,51.57141612,163.54,163.53,88.83508591]
[1754469736776,51.57103074,163.54,163.53,88.83508591]
[1754469739066,47.49734081,163.54,163.53,88.11508591]
[1754469739762,42.97,163.54,163.53,88.11508591]
[1754469739959,42.97,163.54,163.53,88.83508591]
[1754469740259,52.22440845,163.54,163.53,82.0]
[1754469740479,66.74446483,163.54,163.5,82.06]
[1754469740633,17.65966856,163.53,163.5,82.06]
[1754469740833,42.94,163.52,163.51,0.72]
[1754469741032,42.94,163.52,163.5,0.06]
[1754469741257,42.94,163.52,163.5,0.78]
[1754469742003,42.94,163.52,163.5,6.89617005]
[1754469743277,42.94,163.52,163.51,0.72]
[1754469743459,0.03,163.54,163.51,0.72]
[1754469743666,0.03,163.54,163.53,8.40526011]
[1754469743892,51.57812876,163.54,163.53,8.40526011]
[1754469744205,51.57812876,163.54,163.53,9.12526011]
[1754469744690,51.57812876,163.54,163.53,0.72]
[1754469744870,51.57839681,163.54,163.53,15.24034602]
[1754469745802,51.57839681,163.54,163.53,6.83508591]
[1754469746506,51.57839681,163.54,163.53,6.11508591]
[1754469748496,47.04758411,163.54,163.53,6.11508591]
[1754469748791,51.58097264,163.54,163.53,6.11508591]
[1754469748991,51.58097264,163.54,163.53,6.80508591]
[1754469749304,51.58097264,163.54,163.53,88.80508591]
[1754469749482,51.58097264,163.54,163.53,88.11508591]
[1754469750796,51.58097264,163.54,163.53,82.0]
[1754469751198,60.63623275,163.54,163.53,82.0]
[1754469751378,52.23097264,163.54,163.53,82.0]
[1754469752281,60.63623275,163.54,163.53,82.0]
[1754469753690,59.98623275,163.54,163.53,82.0]
[1754469754201,60.63623275,163.54,163.53,82.0]
[1754469755187,60.63623275,163.54,163.5,88.86597775]
[1754469755504,8.61097264,163.53,163.5,88.17597775]
[1754469755699,51.51097264,163.52,163.51,6.8057998]
[1754469756898,51.51097264,163.52,163.5,0.06]
[1754469757078,8.61097264,163.51,163.5,0.06]
[1754469757479,8.61905326,163.51,163.5,0.06]
[1754469757701,8.61905326,163.51,163.5,0.75]
[1754469757874,8.61889734,163.51,163.5,0.75]
[1754469758075,8.61889734,163.51,163.5,6.86620795]
[1754469758306,51.51889734,163.51,163.5,6.86620795]
[1754469759189,51.51889734,163.51,163.5,15.27146806]
[1754469761008,51.51889734,163.51,163.5,97.27146806]
[1754469761394,51.51889734,163.51,163.5,88.86620795]
[1754469761596,51.51889734,163.51,163.5,88.17620795]
[1754469761911,51.51889734,163.51,163.5,88.86620795]
[1754469766084,51.51889734,163.51,163.5,82.06]
[1754469766289,46.97758411,163.51,163.5,82.06]
[1754469766489,51.51610316,163.51,163.5,82.06]
[1754469767088,51.51610316,163.51,163.5,0.06]
[1754469768217,51.51610316,163.51,163.5,0.75]
[1754469770431,51.51610316,163.51,163.5,0.06]
[1754469771212,51.51610316,163.51,163.5,6.86620795]
[1754469771886,51.51610316,163.51,163.5,0.75]
[1754469772214,51.51610316,163.51,163.5,0.06]
[1754469773405,52.16610316,163.51,163.5,0.06]
[1754469774115,60.57136327,163.51,163.5,0.06]
[1754469774323,66.68719716,163.51,163.5,0.06]
[1754469775198,92.71719716,163.51,163.5,0.06]
[1754469775401,93.27565825,163.51,163.5,0.06]
[1754469775601,97.81091902,163.51,163.5,0.06]
[1754469776014,97.80923773,163.51,163.5,0.06]
[1754469776199,89.40397762,163.51,163.5,0.06]
[1754469776404,92.71225759,163.51,163.5,0.06]
[1754469776808,78.19116359,163.51,163.5,0.06]
[1754469776994,51.54116359,163.51,163.5,0.75]
[1754469777314,51.54116359,163.51,163.5,0.06]
[1754469777701,81.81847316,163.51,163.5,0.06]
[1754469777900,107.81847316,163.51,163.5,0.06]
[1754469778102,23.51147568,163.5,163.49,0.06]
[1754469778305,37.2172914,163.5,163.49,0.06]
[1754469778507,37.8672914,163.5,163.49,0.06]
[1754469779423,38.88558039,163.5,163.49,0.06]
[1754469781726,17.01315687,163.5,163.49,0.06]
[1754469781911,23.12936482,163.5,163.49,0.06]
[1754469782221,23.77936482,163.5,163.49,0.06]
[1754469782815,15.37410471,163.5,163.49,0.06]
[1754469783046,23.77936482,163.5,163.49,0.06]
[1754469783326,23.77631238,163.5,163.49,0.06]
[1754469783513,66.65631238,163.5,163.49,0.06]
[1754469784107,23.77631238,163.5,163.49,0.06]
[1754469784305,66.65631238,163.5,163.49,0.06]
[1754469787937,57.60105227,163.5,163.49,0.06]
[1754469788129,66.00631238,163.5,163.49,0.06]
[1754469789140,57.60105227,163.5,163.49,0.06]
[1754469789346,66.00631238,163.5,163.49,0.06]
[1754469789922,66.65631238,163.5,163.49,0.06]
[1754469792125,62.12905217,163.5,163.49,0.06]
[1754469792326,66.6518635,163.5,163.49,0.06]
[1754469792742,62.12905217,163.5,163.49,0.06]
[1754469793057,66.65186187,163.5,163.49,0.06]
[1754469793246,66.00186187,163.5,163.49,0.06]
[1754469796717,66.03186187,163.5,163.49,0.06]
[1754469797342,57.62660176,163.5,163.49,0.06]
[1754469797647,66.03186187,163.5,163.49,0.06]
[1754469797984,66.68186187,163.5,163.49,0.06]
[1754469798823,66.03186187,163.5,163.49,0.06]
[1754469800441,57.62660176,163.5,163.49,0.06]
[1754469800746,78.7801415,163.5,163.49,0.06]
[1754469800930,78.1301415,163.5,163.49,0.06]
[1754469801134,74.2573318,163.5,163.49,0.06]
[1754469801341,78.77917108,163.5,163.49,0.06]
[1754469802024,83.22709004,163.5,163.49,0.06]
[1754469803331,83.87709004,163.5,163.49,0.06]
[1754469805753,87.06935488,163.5,163.49,0.06]
[1754469806323,81.67203071,163.5,163.49,0.06]
[1754469806652,41.10621557,163.49,163.48,0.06]
[1754469806857,29.75296313,163.49,163.47,0.06]
[1754469807026,72.63296313,163.48,163.47,0.06]
[1754469807548,78.74991933,163.48,163.47,0.06]
[1754469808068,78.09991933,163.48,163.47,0.06]
[1754469808762,35.21991933,163.48,163.47,0.06]
[1754469808952,98.70259516,163.48,163.47,0.76]
[1754469809149,104.09991933,163.48,163.47,0.76]
[1754469810226,99.57808005,163.48,163.47,0.06]
[1754469810430,104.0986989,163.48,163.47,0.06]
[1754469810741,107.13665167,163.48,163.47,0.06]
[1754469810944,107.13658563,163.48,163.47,0.06]
[1754469811550,112.87245333,163.48,163.47,0.06]
[1754469811965,81.78658563,163.48,163.47,0.06]
[1754469812262,81.13658563,163.48,163.47,0.06]
[1754469812847,81.13658563,163.48,163.47,0.76]
[1754469813451,81.13658563,163.48,163.47,0.06]
[1754469814265,86.22266836,163.48,163.47,0.06]
[1754469814446,81.13658563,163.48,163.47,0.06]
[1754469814649,86.22370969,163.48,163.47,0.06]
[1754469815230,86.22370969,163.48,163.47,0.76]
[1754469815766,77.78843275,163.48,163.47,0.76]
[1754469815949,86.22370969,163.48,163.47,0.76]
[1754469816263,86.22528856,163.48,163.47,0.76]
[1754469816558,86.22528856,163.48,163.47,0.06]
[1754469816760,86.22528856,163.48,163.43,0.78436321]
[1754469816761,26.0,163.45,163.43,0.78436321]
[1754469816984,101.0212083,163.44,163.43,0.78436321]
[1754469817175,101.0212083,163.44,163.37,0.7]
[1754469817176,26.0,163.4,163.37,0.7]
[1754469817389,8.43527694,163.38,163.37,0.7]
[1754469817553,17.03499273,163.38,163.37,0.7]
[1754469818050,8.59971579,163.38,163.37,0.7]
[1754469818372,47.42213168,163.38,163.37,0.7]
[1754469818571,51.49971579,163.38,163.37,0.7]
[1754469819261,51.49535661,163.38,163.37,0.7]
[1754469819963,59.93063355,163.38,163.37,0.7]
[1754469820158,51.33527694,163.38,163.37,0.7]
[1754469821346,55.84770156,163.38,163.37,0.7]
[1754469821750,59.90856489,163.38,163.37,0.7]
[1754469822155,55.39614027,163.38,163.37,0.7]
[1754469822354,59.90757675,163.38,163.37,0.7]
[1754469823571,55.84671342,163.38,163.37,0.7]
[1754469823776,55.84671342,163.38,163.35,0.7]
[1754469823962,8.43527694,163.37,163.32,111.86559778]
[1754469824167,42.9,163.36,163.32,103.43032084]
[1754469824469,42.9,163.36,163.32,111.86559778]
[1754469824680,42.9,163.36,163.33,0.7]
[1754469827286,51.33527694,163.36,163.35,0.7]
[1754469827469,51.33527694,163.36,163.33,6.82243378]
[1754469827782,51.33527694,163.36,163.34,0.7]
[1754469828102,8.43527694,163.35,163.33,0.7]
[1754469828261,51.33527694,163.34,163.29,6.12407373]
[1754469828453,8.43527694,163.3,163.29,0.7]
[1754469828656,51.33527694,163.3,163.25,105.74878622]
[1754469828874,42.9,163.3,163.26,15.260476]
[1754469829157,42.9,163.3,163.27,0.7]
[1754469830488,42.9,163.3,163.28,6.12444879]
[1754469830782,42.9,163.3,163.29,0.7]
[1754469832565,42.9,163.3,163.29,6.82407373]
[1754469833090,42.9,163.3,163.28,6.12430134]
[1754469833285,42.9,163.3,163.28,6.82430134]
[1754469833477,42.9,163.3,163.29,0.7]
[1754469834488,42.9,163.3,163.29,6.82407373]
[1754469837463,42.9,163.3,163.29,6.84407373]
[1754469837669,42.9,163.3,163.29,6.12407373]
[1754469838509,42.9,163.3,163.29,6.84407373]
[1754469838922,42.9,163.3,163.29,15.27935067]
[1754469839205,26.0,163.33,163.29,15.27935067]
[1754469839366,26.0,163.33,163.31,8.43527694]
[1754469839566,42.92,163.32,163.31,8.43527694]
[1754469840200,42.92,163.32,163.31,9.15527694]
[1754469840689,42.92,163.32,163.31,6.84332374]
[1754469840901,42.92,163.32,163.29,0.72]
[1754469841205,42.92,163.32,163.3,0.72]
[1754469841387,42.92,163.32,163.31,0.72]
[1754469841587,42.92,163.32,163.31,9.15527694]
[1754469842274,26.0,163.34,163.31,9.15527694]
[1754469842496,42.92,163.33,163.32,0.72]
[1754469842716,26.0,163.34,163.31,88.12314043]
[1754469842879,8.43527694,163.33,163.29,0.72]
[1754469843079,26.0,163.31,163.3,0.72]
[1754469843415,42.98,163.31,163.3,9.15527694]
[1754469843716,18.30043598,163.39,163.3,9.15527694]
[1754469843717,24.42098856,163.39,163.3,9.15527694]
[1754469843869,3.19422041,163.39,163.36,8.43527694]
[1754469844068,43.02,163.38,163.35,8.43527694]
[1754469844297,43.02,163.38,163.36,9.15527694]
[1754469844473,43.02,163.38,163.37,0.72]
[1754469844676,43.02,163.38,163.35,0.72]
[1754469844877,9.08527694,163.37,163.31,6.12332374]
[1754469845081,9.08527694,163.37,163.31,0.72]
[1754469845082,8.43527694,163.34,163.31,0.72]
[1754469845413,43.08,163.33,163.31,0.72]
[1754469846003,43.08,163.33,163.31,6.84317699]
[1754469846314,43.08,163.33,163.32,0.72]
[1754469846471,26.0,163.37,163.32,0.72]
[1754469846671,43.08,163.36,163.33,0.72]
[1754469846885,51.51527694,163.36,163.33,0.72]
[1754469847613,51.51527694,163.36,163.31,6.84317953]
[1754469847778,52.16527694,163.36,163.32,0.72]
[1754469847981,9.08527694,163.36,163.32,15.27806114]
[1754469848198,43.08,163.35,163.32,15.27806114]
[1754469848407,43.08,163.35,163.32,0.72]
[1754469848603,0.65,163.34,163.29,0.72]
[1754469848842,8.43527694,163.31,163.28,0.06]
[1754469849118,8.43527694,163.31,163.28,82.06]
[1754469849119,43.14,163.3,163.28,82.06]
[1754469849475,43.14,163.3,163.28,82.78]
[1754469849977,43.14,163.3,163.28,88.90427046]
[1754469851611,43.14,163.3,163.29,0.72]